[Event "*** SCC Grand Prix: Titled Tuesday Blitz"]
[Site "Chess.com"]
[Date "2020.07.14"]
[Round "2"]
[White "KratosKrieg"]
[Black "llamalord42"]
[Result "0-1"]
[WhiteElo "1966"]
[BlackElo "2351"]
[TimeControl "180+1"]
[EndTime "10:16:08 PDT"]
[Termination "llamalord42 won on time"]

1. e4 {[%clk 0:03:00.9]} 1... c6 {[%clk 0:02:59.6]} 2. d4 {[%clk 0:03:00.7]}
2... d5 {[%clk 0:03:00.5]} 3. exd5 {[%clk 0:03:01.6]} 3... cxd5 {[%clk
0:03:00.5]} 4. Bd3 {[%clk 0:03:02.5]} 4... Nc6 {[%clk 0:03:00.1]} 5. c3 {[%clk
0:03:02.7]} 5... Qc7 {[%clk 0:03:00.5]} 6. Ne2 {[%clk 0:02:53.1]} 6... Bg4
{[%clk 0:03:00.3]} 7. f3 {[%clk 0:02:51.9]} 7... Bd7 {[%clk 0:03:00]} 8. Bf4
{[%clk 0:02:52.2]} 8... e5 {[%clk 0:03:00.5]} 9. dxe5 {[%clk 0:02:52.2]} 9...
Nxe5 {[%clk 0:03:01.4]} 10. Bc2 {[%clk 0:02:47.1]} 10... Nf6 {[%clk 0:02:34.2]}
11. Nd2 {[%clk 0:01:40.9]} 11... Bd6 {[%clk 0:02:33.1]} 12. Nb3 {[%clk 0:01:35]}
12... O-O-O {[%clk 0:02:25.6]} 13. Qd4 {[%clk 0:01:23.4]} 13... Nh5 {[%clk
0:02:24.9]} 14. Bxe5 {[%clk 0:00:58]} 14... Bxe5 {[%clk 0:02:24.4]} 15. Qxa7
{[%clk 0:00:58.1]} 15... Bb5 {[%clk 0:01:55.1]} 16. Bf5+ {[%clk 0:00:36]} 16...
Bd7 {[%clk 0:01:46.6]} 17. Bxd7+ {[%clk 0:00:23]} 17... Rxd7 {[%clk 0:01:45.1]}
18. Nc5 {[%clk 0:00:20.5]} 18... Re7 {[%clk 0:01:45.4]} 19. O-O-O {[%clk
0:00:12.5]} 19... Bd6 {[%clk 0:01:40.8]} 20. Nb3 {[%clk 0:00:08.7]} 20... Rxe2
{[%clk 0:01:39.9]} 21. Rxd5 {[%clk 0:00:06.5]} 21... Nf4 {[%clk 0:01:39.7]} 22.
Rd4 {[%clk 0:00:03.3]} 22... Rhe8 {[%clk 0:01:35.7]} 23. Rhd1 {[%clk 0:00:02.4]}
23... R2e6 {[%clk 0:01:32.3]} 24. Qa4 {[%clk 0:00:01.7]} 24... Ne2+ {[%clk
0:01:31.2]} 0-1

[Event "*** SCC Grand Prix: Titled Tuesday Blitz"]
[Site "Chess.com"]
[Date "2020.07.14"]
[Round "2"]
[White "WonderChampion"]
[Black "GGfrances"]
[Result "0-1"]
[WhiteElo "2020"]
[BlackElo "2361"]
[TimeControl "180+1"]
[EndTime "10:16:10 PDT"]
[Termination "GGfrances won by checkmate"]

1. d4 {[%clk 0:03:00.9]} 1... Nf6 {[%clk 0:02:59.4]} 2. Bg5 {[%clk 0:03:00.2]}
2... c5 {[%clk 0:02:57.4]} 3. dxc5 {[%clk 0:02:57.7]} 3... Qa5+ {[%clk
0:02:53.3]} 4. Bd2 {[%clk 0:02:50.1]} 4... Qxc5 {[%clk 0:02:50.4]} 5. Nc3 {[%clk
0:02:48.9]} 5... g6 {[%clk 0:02:48.1]} 6. Nf3 {[%clk 0:02:46.3]} 6... Bg7 {[%clk
0:02:43.9]} 7. e3 {[%clk 0:02:42.4]} 7... O-O {[%clk 0:02:40.5]} 8. Bd3 {[%clk
0:02:42.6]} 8... Nc6 {[%clk 0:02:37.7]} 9. O-O {[%clk 0:02:42.5]} 9... d5 {[%clk
0:02:35]} 10. Re1 {[%clk 0:02:38.2]} 10... e5 {[%clk 0:02:26.1]} 11. e4 {[%clk
0:02:32.7]} 11... d4 {[%clk 0:02:21.8]} 12. Ne2 {[%clk 0:02:28.9]} 12... Bg4
{[%clk 0:02:15.8]} 13. Nc1 {[%clk 0:02:10.7]} 13... Rad8 {[%clk 0:02:10.1]} 14.
Nb3 {[%clk 0:02:08.8]} 14... Qe7 {[%clk 0:02:04.3]} 15. h3 {[%clk 0:02:04.8]}
15... Be6 {[%clk 0:02:04.7]} 16. Ng5 {[%clk 0:02:01.4]} 16... Bd7 {[%clk
0:01:59.3]} 17. Qe2 {[%clk 0:01:58.6]} 17... b6 {[%clk 0:01:55]} 18. Nf3 {[%clk
0:01:57.9]} 18... a5 {[%clk 0:01:52.5]} 19. a4 {[%clk 0:01:47.7]} 19... Nh5
{[%clk 0:01:49.5]} 20. c3 {[%clk 0:01:45.7]} 20... dxc3 {[%clk 0:01:46.8]} 21.
Bxc3 {[%clk 0:01:44.4]} 21... Nf4 {[%clk 0:01:41]} 22. Qc2 {[%clk 0:01:35.7]}
22... Bxh3 {[%clk 0:01:37.9]} 23. Bb5 {[%clk 0:01:26.2]} 23... Bxg2 {[%clk
0:01:35.2]} 24. Nh2 {[%clk 0:01:11.8]} 24... Qg5 {[%clk 0:01:28.4]} 25. Nf1
{[%clk 0:00:22.7]} 25... Bxf1+ {[%clk 0:01:23.8]} 26. Kxf1 {[%clk 0:00:17.3]}
26... Qg2# {[%clk 0:01:23.4]} 0-1

[Event "*** SCC Grand Prix: Titled Tuesday Blitz"]
[Site "Chess.com"]
[Date "2020.07.14"]
[Round "2"]
[White "Superfelix"]
[Black "hongnhung1234"]
[Result "0-1"]
[WhiteElo "2425"]
[BlackElo "2242"]
[TimeControl "180+1"]
[EndTime "10:16:13 PDT"]
[Termination "hongnhung1234 won by resignation"]

1. e4 {[%clk 0:03:00.9]} 1... c5 {[%clk 0:02:59.7]} 2. Nf3 {[%clk 0:02:59.8]}
2... e6 {[%clk 0:02:59.9]} 3. d4 {[%clk 0:03:00.7]} 3... cxd4 {[%clk 0:03:00.7]}
4. Nxd4 {[%clk 0:03:01.1]} 4... Nc6 {[%clk 0:03:01.2]} 5. Nc3 {[%clk 0:03:01.6]}
5... Qc7 {[%clk 0:03:01.2]} 6. g3 {[%clk 0:03:00.6]} 6... a6 {[%clk 0:03:00.3]}
7. Bg2 {[%clk 0:03:00.3]} 7... Nf6 {[%clk 0:03:00]} 8. O-O {[%clk 0:03:00.2]}
8... Be7 {[%clk 0:03:00.4]} 9. Re1 {[%clk 0:03:00.2]} 9... d6 {[%clk 0:02:58.1]}
10. Nxc6 {[%clk 0:02:53.7]} 10... bxc6 {[%clk 0:02:59]} 11. b3 {[%clk
0:02:53.5]} 11... O-O {[%clk 0:02:56.8]} 12. Bb2 {[%clk 0:02:53.3]} 12... d5
{[%clk 0:02:51]} 13. exd5 {[%clk 0:02:47.6]} 13... cxd5 {[%clk 0:02:49.6]} 14.
Na4 {[%clk 0:02:41.7]} 14... Bb7 {[%clk 0:02:42.8]} 15. Rc1 {[%clk 0:02:41.5]}
15... Rfd8 {[%clk 0:02:36.2]} 16. Qe2 {[%clk 0:02:38.4]} 16... Rac8 {[%clk
0:02:13.4]} 17. c4 {[%clk 0:02:32.1]} 17... dxc4 {[%clk 0:02:08.4]} 18. Rxc4
{[%clk 0:02:27.6]} 18... Qb8 {[%clk 0:02:08.4]} 19. Rec1 {[%clk 0:02:22.1]}
19... Bxg2 {[%clk 0:02:05.1]} 20. Rxc8 {[%clk 0:02:18]} 20... Rxc8 {[%clk
0:02:03.6]} 21. Rxc8+ {[%clk 0:02:18.2]} 21... Qxc8 {[%clk 0:02:03.8]} 22. Kxg2
{[%clk 0:02:18.8]} 22... h6 {[%clk 0:01:58.2]} 23. Qd3 {[%clk 0:02:11.3]} 23...
Qc6+ {[%clk 0:01:54.6]} 24. Qf3 {[%clk 0:02:09.9]} 24... Qc2 {[%clk 0:01:48.4]}
25. Qc3 {[%clk 0:02:07.9]} 25... Qe4+ {[%clk 0:01:46.7]} 26. Qf3 {[%clk
0:02:07.3]} 26... Qb1 {[%clk 0:01:46.8]} 27. Qa8+ {[%clk 0:02:04]} 27... Kh7
{[%clk 0:01:46.7]} 28. Qxa6 {[%clk 0:02:03.7]} 28... Qxa2 {[%clk 0:01:46.3]} 29.
Qd3+ {[%clk 0:02:03.2]} 29... Kg8 {[%clk 0:01:44.4]} 30. h3 {[%clk 0:01:48.6]}
30... Nd5 {[%clk 0:01:42.6]} 31. Be5 {[%clk 0:01:33.9]} 31... Qa3 {[%clk
0:01:34.8]} 32. Qc4 {[%clk 0:01:31.1]} 32... Qa2 {[%clk 0:01:28.2]} 33. Nc3
{[%clk 0:01:26.8]} 33... Ne3+ {[%clk 0:01:25.7]} 34. Kf3 {[%clk 0:01:23.9]}
34... Nxc4 {[%clk 0:01:19.1]} 35. Nxa2 {[%clk 0:01:23.7]} 35... Nxe5+ {[%clk
0:01:19.6]} 36. Ke4 {[%clk 0:01:22.9]} 36... f6 {[%clk 0:01:19.6]} 37. f4 {[%clk
0:01:21.3]} 37... Nc6 {[%clk 0:01:19.2]} 38. f5 {[%clk 0:01:14.8]} 38... exf5+
{[%clk 0:01:18.8]} 39. Kxf5 {[%clk 0:01:15.7]} 39... Kf7 {[%clk 0:01:19.2]} 40.
g4 {[%clk 0:01:12.9]} 40... Nd4+ {[%clk 0:01:17.4]} 41. Ke4 {[%clk 0:01:12.1]}
41... Nxb3 {[%clk 0:01:18.3]} 42. Nc3 {[%clk 0:01:11.9]} 42... Nc5+ {[%clk
0:01:17.7]} 43. Kd5 {[%clk 0:01:11.1]} 43... Ne6 {[%clk 0:01:14.3]} 44. Ne4
{[%clk 0:01:09.5]} 44... Nf4+ {[%clk 0:01:14.2]} 0-1

[Event "*** SCC Grand Prix: Titled Tuesday Blitz"]
[Site "Chess.com"]
[Date "2020.07.14"]
[Round "2"]
[White "MashaFromRussia"]
[Black "GuuBol"]
[Result "1-0"]
[WhiteElo "2443"]
[BlackElo "2230"]
[TimeControl "180+1"]
[EndTime "10:16:17 PDT"]
[Termination "MashaFromRussia won by resignation"]

1. d4 {[%clk 0:03:00.9]} 1... d5 {[%clk 0:02:59.1]} 2. c4 {[%clk 0:03:00.6]}
2... e6 {[%clk 0:02:59.2]} 3. Nf3 {[%clk 0:03:00.8]} 3... c5 {[%clk 0:02:59.1]}
4. cxd5 {[%clk 0:03:00.7]} 4... exd5 {[%clk 0:03:00]} 5. Nc3 {[%clk 0:03:01.2]}
5... Nf6 {[%clk 0:02:59.7]} 6. g3 {[%clk 0:03:01]} 6... Nc6 {[%clk 0:02:59.6]}
7. Bg2 {[%clk 0:03:01.5]} 7... Be7 {[%clk 0:02:58.9]} 8. O-O {[%clk 0:03:01.5]}
8... O-O {[%clk 0:02:59.1]} 9. Bg5 {[%clk 0:03:01.9]} 9... c4 {[%clk 0:02:59.3]}
10. Ne5 {[%clk 0:03:01.3]} 10... Be6 {[%clk 0:02:56.3]} 11. Nxc6 {[%clk
0:03:00.8]} 11... bxc6 {[%clk 0:02:55.9]} 12. e3 {[%clk 0:03:01.4]} 12... h6
{[%clk 0:02:54.9]} 13. Bxf6 {[%clk 0:03:00.8]} 13... Bxf6 {[%clk 0:02:55.5]} 14.
b3 {[%clk 0:03:00.7]} 14... Qa5 {[%clk 0:02:50.4]} 15. Qc2 {[%clk 0:03:00.5]}
15... Rac8 {[%clk 0:02:44.1]} 16. bxc4 {[%clk 0:03:00.2]} 16... dxc4 {[%clk
0:02:43.9]} 17. Ne4 {[%clk 0:02:57.7]} 17... Be7 {[%clk 0:02:37.3]} 18. Rfd1
{[%clk 0:02:55.1]} 18... Bd5 {[%clk 0:02:27.3]} 19. Rab1 {[%clk 0:02:48.1]}
19... Rc7 {[%clk 0:02:22.6]} 20. Nc3 {[%clk 0:02:36.2]} 20... f5 {[%clk
0:02:02.6]} 21. Bxd5+ {[%clk 0:02:34.7]} 21... cxd5 {[%clk 0:02:00.9]} 22. Rb5
{[%clk 0:02:34.8]} 22... Qa3 {[%clk 0:01:53.8]} 23. Nxd5 {[%clk 0:02:29.9]}
23... Rcc8 {[%clk 0:01:49.9]} 24. Nxe7+ {[%clk 0:02:09.5]} 24... Qxe7 {[%clk
0:01:50.8]} 25. Rdb1 {[%clk 0:02:07.3]} 25... Qg5 {[%clk 0:01:39.4]} 26. Rc5
{[%clk 0:01:56.7]} 26... Rxc5 {[%clk 0:01:37.7]} 27. dxc5 {[%clk 0:01:56.5]}
27... f4 {[%clk 0:01:37.3]} 28. Qxc4+ {[%clk 0:01:50]} 28... Kh8 {[%clk
0:01:30.2]} 29. exf4 {[%clk 0:01:49.7]} 29... Qf5 {[%clk 0:01:28.2]} 30. Rb7
{[%clk 0:01:45.6]} 30... Rd8 {[%clk 0:00:56]} 31. c6 {[%clk 0:01:27.6]} 31...
Qh3 {[%clk 0:00:47]} 32. Rb1 {[%clk 0:01:22.3]} 32... Rc8 {[%clk 0:00:41.9]} 33.
c7 {[%clk 0:01:19]} 1-0

[Event "*** SCC Grand Prix: Titled Tuesday Blitz"]
[Site "Chess.com"]
[Date "2020.07.14"]
[Round "2"]
[White "Ceejay271"]
[Black "LyonBeast"]
[Result "0-1"]
[WhiteElo "2337"]
[BlackElo "3019"]
[TimeControl "180+1"]
[EndTime "10:16:19 PDT"]
[Termination "LyonBeast won by resignation"]

1. d4 {[%clk 0:03:00.9]} 1... d6 {[%clk 0:03:00]} 2. Nf3 {[%clk 0:03:00.2]} 2...
Nf6 {[%clk 0:02:59.1]} 3. c4 {[%clk 0:02:59.2]} 3... g6 {[%clk 0:02:58.8]} 4.
Nc3 {[%clk 0:02:59.2]} 4... Bf5 {[%clk 0:02:58.9]} 5. Nh4 {[%clk 0:02:57.2]}
5... Bd7 {[%clk 0:02:58.3]} 6. e4 {[%clk 0:02:57.1]} 6... e5 {[%clk 0:02:57.5]}
7. dxe5 {[%clk 0:02:47.4]} 7... dxe5 {[%clk 0:02:56.6]} 8. Nf3 {[%clk
0:02:45.4]} 8... Nc6 {[%clk 0:02:54.4]} 9. Be2 {[%clk 0:02:40.4]} 9... Bb4
{[%clk 0:02:51.3]} 10. Bd2 {[%clk 0:02:06.8]} 10... O-O {[%clk 0:02:48.9]} 11.
O-O {[%clk 0:02:05.4]} 11... Bxc3 {[%clk 0:02:29]} 12. Bxc3 {[%clk 0:02:04.6]}
12... Nxe4 {[%clk 0:02:29.9]} 13. Bxe5 {[%clk 0:02:02.6]} 13... Nxe5 {[%clk
0:02:20.3]} 14. Nxe5 {[%clk 0:02:02.6]} 14... Be6 {[%clk 0:02:21.2]} 15. Qc2
{[%clk 0:01:41.4]} 15... Nd6 {[%clk 0:02:21.1]} 16. Rad1 {[%clk 0:01:38.6]}
16... Qf6 {[%clk 0:02:18.9]} 17. Nf3 {[%clk 0:01:31.5]} 17... Rad8 {[%clk
0:02:14.7]} 18. b3 {[%clk 0:01:30.6]} 18... Rfe8 {[%clk 0:02:08.9]} 19. Rfe1
{[%clk 0:01:26.7]} 19... Bg4 {[%clk 0:02:05]} 20. Nd4 {[%clk 0:01:22.9]} 20...
Nf5 {[%clk 0:02:01.2]} 21. Nxf5 {[%clk 0:00:51]} 21... Bxf5 {[%clk 0:02:02.1]}
22. Qc1 {[%clk 0:00:49.1]} 22... Rxd1 {[%clk 0:02:01.3]} 23. Qxd1 {[%clk
0:00:47.7]} 23... Qc3 {[%clk 0:02:00.1]} 24. Kf1 {[%clk 0:00:21.7]} 24... a5
{[%clk 0:01:58.1]} 25. f3 {[%clk 0:00:17.2]} 25... Qe3 {[%clk 0:01:49.7]} 26. g4
{[%clk 0:00:15]} 26... Be6 {[%clk 0:01:41.1]} 27. Bd3 {[%clk 0:00:14.9]} 27...
Qf4 {[%clk 0:01:40.5]} 28. Kg2 {[%clk 0:00:14.5]} 28... Rd8 {[%clk 0:01:40.3]}
29. Qe2 {[%clk 0:00:13.7]} 29... h5 {[%clk 0:01:38]} 30. h3 {[%clk 0:00:13.3]}
30... h4 {[%clk 0:01:37.9]} 31. Be4 {[%clk 0:00:06.1]} 31... Rd2 {[%clk
0:01:32.7]} 0-1

[Event "*** SCC Grand Prix: Titled Tuesday Blitz"]
[Site "Chess.com"]
[Date "2020.07.14"]
[Round "2"]
[White "eightbyeightchess"]
[Black "JiiHart"]
[Result "1-0"]
[WhiteElo "2394"]
[BlackElo "2106"]
[TimeControl "180+1"]
[EndTime "10:16:21 PDT"]
[Termination "eightbyeightchess won by resignation"]

1. e4 {[%clk 0:03:00.9]} 1... c5 {[%clk 0:02:58.3]} 2. Nf3 {[%clk 0:02:58.6]}
2... Nc6 {[%clk 0:02:58.3]} 3. d4 {[%clk 0:02:58.3]} 3... cxd4 {[%clk
0:02:58.5]} 4. Nxd4 {[%clk 0:02:59.2]} 4... Nf6 {[%clk 0:02:58.8]} 5. Nc3 {[%clk
0:02:59.1]} 5... d6 {[%clk 0:02:58.8]} 6. Be2 {[%clk 0:02:57.4]} 6... e5 {[%clk
0:02:58.3]} 7. Nxc6 {[%clk 0:02:53.1]} 7... bxc6 {[%clk 0:02:57.6]} 8. O-O
{[%clk 0:02:53.8]} 8... Be6 {[%clk 0:02:50]} 9. Bg5 {[%clk 0:02:53.1]} 9... Be7
{[%clk 0:02:49.3]} 10. Qd2 {[%clk 0:02:52.2]} 10... Qc7 {[%clk 0:02:30.3]} 11.
Rad1 {[%clk 0:02:51]} 11... Rd8 {[%clk 0:02:30.3]} 12. f4 {[%clk 0:02:42.6]}
12... h6 {[%clk 0:01:59.2]} 13. f5 {[%clk 0:02:27]} 13... hxg5 {[%clk
0:01:43.2]} 14. fxe6 {[%clk 0:02:27.2]} 14... fxe6 {[%clk 0:01:16.8]} 15. Qxg5
{[%clk 0:02:26.7]} 15... Qb6+ {[%clk 0:01:01.3]} 16. Kh1 {[%clk 0:02:23.7]}
16... Kd7 {[%clk 0:01:00.9]} 17. Qxe5 {[%clk 0:02:11.9]} 17... Rh6 {[%clk
0:00:22.2]} 18. Qg3 {[%clk 0:01:53.5]} 18... Rdh8 {[%clk 0:00:20.8]} 19. h3
{[%clk 0:01:53.8]} 19... g5 {[%clk 0:00:15.9]} 20. e5 {[%clk 0:01:51.8]} 20...
Nh5 {[%clk 0:00:13.2]} 21. Bxh5 {[%clk 0:01:51.2]} 21... Rxh5 {[%clk 0:00:12.4]}
22. exd6 {[%clk 0:01:46]} 22... Bxd6 {[%clk 0:00:12.5]} 23. Rxd6+ {[%clk
0:01:34.3]} 23... Kc7 {[%clk 0:00:10.2]} 24. Rxe6+ {[%clk 0:01:25.4]} 24... Kb7
{[%clk 0:00:08.6]} 25. Re7+ {[%clk 0:01:24.1]} 25... Ka6 {[%clk 0:00:07.5]} 26.
Qd3+ {[%clk 0:01:23.2]} 1-0

[Event "*** SCC Grand Prix: Titled Tuesday Blitz"]
[Site "Chess.com"]
[Date "2020.07.14"]
[Round "2"]
[White "Bulldog167"]
[Black "GiorgianBarbosa"]
[Result "1-0"]
[WhiteElo "2701"]
[BlackElo "2468"]
[TimeControl "180+1"]
[EndTime "10:16:22 PDT"]
[Termination "Bulldog167 won by resignation"]

1. d4 {[%clk 0:03:00.9]} 1... Nf6 {[%clk 0:02:59.3]} 2. c4 {[%clk 0:03:00.6]}
2... g6 {[%clk 0:02:50.3]} 3. Nc3 {[%clk 0:02:58.2]} 3... Bg7 {[%clk 0:02:50.7]}
4. e4 {[%clk 0:02:58.4]} 4... d6 {[%clk 0:02:50.6]} 5. h3 {[%clk 0:02:58.9]}
5... O-O {[%clk 0:02:51.2]} 6. Be3 {[%clk 0:02:59.2]} 6... e5 {[%clk 0:02:51.6]}
7. d5 {[%clk 0:02:59.4]} 7... Nbd7 {[%clk 0:02:45.6]} 8. g4 {[%clk 0:02:59.2]}
8... Nc5 {[%clk 0:02:45.6]} 9. f3 {[%clk 0:02:59.5]} 9... a5 {[%clk 0:02:45.2]}
10. Qd2 {[%clk 0:02:59.5]} 10... Nfd7 {[%clk 0:02:41.7]} 11. h4 {[%clk
0:02:58.2]} 11... f5 {[%clk 0:02:38.3]} 12. gxf5 {[%clk 0:02:54.3]} 12... gxf5
{[%clk 0:02:39.2]} 13. O-O-O {[%clk 0:02:52.4]} 13... f4 {[%clk 0:02:35.8]} 14.
Bf2 {[%clk 0:02:50.6]} 14... b6 {[%clk 0:02:35.4]} 15. h5 {[%clk 0:02:48]} 15...
Kh8 {[%clk 0:02:33.8]} 16. h6 {[%clk 0:02:46.2]} 16... Bf6 {[%clk 0:02:34.2]}
17. Kb1 {[%clk 0:02:45.8]} 17... Qe7 {[%clk 0:02:31.9]} 18. Bh3 {[%clk
0:02:44.5]} 18... Rg8 {[%clk 0:02:28.5]} 19. Nge2 {[%clk 0:02:43.8]} 19... Nf8
{[%clk 0:02:28]} 20. Bxc8 {[%clk 0:02:37]} 20... Rxc8 {[%clk 0:02:28.9]} 21. Nb5
{[%clk 0:02:29.2]} 21... Ng6 {[%clk 0:01:51.6]} 22. Bxc5 {[%clk 0:02:26.7]}
22... dxc5 {[%clk 0:01:44.1]} 23. d6 {[%clk 0:02:23.1]} 23... Qf7 {[%clk
0:01:28.4]} 24. dxc7 {[%clk 0:02:19.6]} 24... Qxc4 {[%clk 0:01:20]} 25. Nd6
{[%clk 0:02:18.6]} 25... Qe6 {[%clk 0:01:14.1]} 26. Nxc8 {[%clk 0:02:18.2]}
26... Rxc8 {[%clk 0:01:10.6]} 27. Qd7 {[%clk 0:02:18.4]} 27... Qg8 {[%clk
0:01:00.8]} 28. Nc3 {[%clk 0:02:12.2]} 28... Nf8 {[%clk 0:00:56.2]} 29. Qc6
{[%clk 0:02:11.1]} 29... Ne6 {[%clk 0:00:54.4]} 30. Nd5 {[%clk 0:02:07.8]} 30...
Bg5 {[%clk 0:00:41.6]} 31. Qd6 {[%clk 0:02:00.7]} 31... Qg6 {[%clk 0:00:27]} 32.
Qxe5+ {[%clk 0:02:00]} 32... Kg8 {[%clk 0:00:27.5]} 33. Rhg1 {[%clk 0:01:59.1]}
33... Kf7 {[%clk 0:00:25.5]} 34. Qf5+ {[%clk 0:01:54.6]} 34... Ke8 {[%clk
0:00:16.8]} 35. Qxg6+ {[%clk 0:01:50.5]} 35... hxg6 {[%clk 0:00:17.7]} 36. h7
{[%clk 0:01:51.1]} 36... Kf7 {[%clk 0:00:15.4]} 37. Nxb6 {[%clk 0:01:51.5]} 1-0

[Event "*** SCC Grand Prix: Titled Tuesday Blitz"]
[Site "Chess.com"]
[Date "2020.07.14"]
[Round "2"]
[White "Agnes66678"]
[Black "vesalhamedinia"]
[Result "0-1"]
[WhiteElo "2412"]
[BlackElo "2220"]
[TimeControl "180+1"]
[EndTime "10:16:29 PDT"]
[Termination "vesalhamedinia won by resignation"]

1. Nf3 {[%clk 0:03:00.9]} 1... d5 {[%clk 0:02:58.1]} 2. g3 {[%clk 0:02:59.1]}
2... c6 {[%clk 0:02:57.3]} 3. Bg2 {[%clk 0:02:55.8]} 3... Nf6 {[%clk 0:02:57.8]}
4. O-O {[%clk 0:02:55.1]} 4... Bf5 {[%clk 0:02:57.8]} 5. d3 {[%clk 0:02:54]}
5... e6 {[%clk 0:02:57.8]} 6. Nh4 {[%clk 0:02:48]} 6... Bg4 {[%clk 0:02:55.2]}
7. h3 {[%clk 0:02:48]} 7... Bh5 {[%clk 0:02:55.2]} 8. f4 {[%clk 0:02:47.7]} 8...
Nbd7 {[%clk 0:02:44.2]} 9. Qe1 {[%clk 0:02:47.1]} 9... Qb6+ {[%clk 0:02:41.2]}
10. Kh2 {[%clk 0:02:45.4]} 10... Bd6 {[%clk 0:02:40]} 11. e4 {[%clk 0:02:44.2]}
11... Bc7 {[%clk 0:02:31]} 12. Nc3 {[%clk 0:02:42.6]} 12... O-O-O {[%clk
0:02:26.8]} 13. e5 {[%clk 0:02:42.3]} 13... Ng8 {[%clk 0:02:21.1]} 14. Na4
{[%clk 0:02:35.8]} 14... Qa6 {[%clk 0:02:19.8]} 15. b3 {[%clk 0:02:33.8]} 15...
g5 {[%clk 0:02:16.1]} 16. Nf3 {[%clk 0:02:28.2]} 16... gxf4 {[%clk 0:02:01.2]}
17. gxf4 {[%clk 0:02:29.1]} 17... Ne7 {[%clk 0:02:00.1]} 18. d4 {[%clk
0:02:17.4]} 18... Nf5 {[%clk 0:01:59.1]} 19. Be3 {[%clk 0:02:14.1]} 19... Rhg8
{[%clk 0:01:49.4]} 20. Rf2 {[%clk 0:02:13.4]} 20... Ba5 {[%clk 0:01:37.6]} 21.
c3 {[%clk 0:02:06.2]} 21... Qd3 {[%clk 0:01:33.2]} 22. Re2 {[%clk 0:01:43.9]}
22... Rxg2+ {[%clk 0:01:30]} 23. Kxg2 {[%clk 0:01:42.6]} 23... Qe4 {[%clk
0:01:04]} 24. Rf2 {[%clk 0:00:58.4]} 24... Nxe3+ {[%clk 0:00:56.6]} 25. Kh2
{[%clk 0:00:55.9]} 25... Bxf3 {[%clk 0:00:53.6]} 26. b4 {[%clk 0:00:55.5]} 26...
Bc7 {[%clk 0:00:51]} 27. Qd2 {[%clk 0:00:49.4]} 27... Qxf4+ {[%clk 0:00:47.5]}
28. Kg1 {[%clk 0:00:48.8]} 28... Rg8+ {[%clk 0:00:45]} 0-1

[Event "*** SCC Grand Prix: Titled Tuesday Blitz"]
[Site "Chess.com"]
[Date "2020.07.14"]
[Round "2"]
[White "dretch"]
[Black "Ermito2020"]
[Result "1-0"]
[WhiteElo "2808"]
[BlackElo "2507"]
[TimeControl "180+1"]
[EndTime "10:16:31 PDT"]
[Termination "dretch won by resignation"]

1. d4 {[%clk 0:03:00.9]} 1... d5 {[%clk 0:02:58.8]} 2. c4 {[%clk 0:03:01]} 2...
e6 {[%clk 0:02:58.2]} 3. Nc3 {[%clk 0:03:00.9]} 3... c6 {[%clk 0:02:58.4]} 4. e3
{[%clk 0:02:57.1]} 4... Nf6 {[%clk 0:02:57.7]} 5. Bd3 {[%clk 0:02:57.4]} 5...
dxc4 {[%clk 0:02:51.6]} 6. Bxc4 {[%clk 0:02:58.3]} 6... Nbd7 {[%clk 0:02:51.3]}
7. e4 {[%clk 0:02:53.7]} 7... b5 {[%clk 0:02:42.5]} 8. Bd3 {[%clk 0:02:53.6]}
8... e5 {[%clk 0:02:40.2]} 9. Nf3 {[%clk 0:02:52.7]} 9... exd4 {[%clk
0:02:35.1]} 10. Nxd4 {[%clk 0:02:53.6]} 10... Ne5 {[%clk 0:02:33.7]} 11. Bc2
{[%clk 0:02:51.3]} 11... Bc5 {[%clk 0:02:17.4]} 12. Nb3 {[%clk 0:02:33.6]} 12...
Qxd1+ {[%clk 0:02:14.9]} 13. Nxd1 {[%clk 0:02:33.7]} 13... Bb4+ {[%clk
0:02:13.8]} 14. Bd2 {[%clk 0:02:27.3]} 14... Bxd2+ {[%clk 0:02:08.5]} 15. Nxd2
{[%clk 0:02:27.7]} 15... c5 {[%clk 0:01:41.8]} 16. Nc3 {[%clk 0:02:15.5]} 16...
b4 {[%clk 0:01:21.3]} 17. Na4 {[%clk 0:01:55.6]} 17... Ned7 {[%clk 0:00:47.1]}
18. f4 {[%clk 0:01:27]} 18... Bb7 {[%clk 0:00:44.5]} 19. e5 {[%clk 0:01:15.2]}
19... Nd5 {[%clk 0:00:43.9]} 20. Be4 {[%clk 0:01:14.5]} 20... O-O-O {[%clk
0:00:30.1]} 21. Nc4 {[%clk 0:01:04.6]} 21... Kb8 {[%clk 0:00:27.6]} 22. Nd6
{[%clk 0:01:00.9]} 22... Nxf4 {[%clk 0:00:20.1]} 23. Nxb7 {[%clk 0:00:59.2]}
23... Nxe5 {[%clk 0:00:16.3]} 24. Nxd8 {[%clk 0:00:56.9]} 1-0

[Event "*** SCC Grand Prix: Titled Tuesday Blitz"]
[Site "Chess.com"]
[Date "2020.07.14"]
[Round "2"]
[White "maciek_92"]
[Black "Kosche007"]
[Result "1-0"]
[WhiteElo "2637"]
[BlackElo "2302"]
[TimeControl "180+1"]
[EndTime "10:16:34 PDT"]
[Termination "maciek_92 won by resignation"]

1. c4 {[%clk 0:03:00.9]} 1... g6 {[%clk 0:02:58.9]} 2. Nc3 {[%clk 0:03:01]} 2...
Bg7 {[%clk 0:02:57]} 3. d4 {[%clk 0:03:01.3]} 3... Nf6 {[%clk 0:02:56.5]} 4. e4
{[%clk 0:03:01]} 4... d6 {[%clk 0:02:55.9]} 5. h3 {[%clk 0:02:58.9]} 5... e5
{[%clk 0:02:55.4]} 6. d5 {[%clk 0:02:54]} 6... a5 {[%clk 0:02:54.9]} 7. Be3
{[%clk 0:02:51.2]} 7... Na6 {[%clk 0:02:52]} 8. g4 {[%clk 0:02:47.7]} 8... Bd7
{[%clk 0:02:43.6]} 9. Nge2 {[%clk 0:02:46.3]} 9... h5 {[%clk 0:02:40.3]} 10. g5
{[%clk 0:02:43.1]} 10... Nh7 {[%clk 0:02:39.9]} 11. Qd2 {[%clk 0:02:40.9]} 11...
h4 {[%clk 0:02:35.3]} 12. Nc1 {[%clk 0:02:21.2]} 12... Nc5 {[%clk 0:02:21.8]}
13. Nd3 {[%clk 0:02:19]} 13... b6 {[%clk 0:02:21.2]} 14. b3 {[%clk 0:02:15]}
14... Bf8 {[%clk 0:02:00.2]} 15. O-O-O {[%clk 0:01:55.2]} 15... Be7 {[%clk
0:01:58.7]} 16. Rg1 {[%clk 0:01:55.1]} 16... Nxd3+ {[%clk 0:01:31.3]} 17. Bxd3
{[%clk 0:01:53.8]} 17... Nf8 {[%clk 0:01:27.7]} 18. f4 {[%clk 0:01:42.4]} 18...
exf4 {[%clk 0:01:23.4]} 19. Bxf4 {[%clk 0:01:42.5]} 19... Bxh3 {[%clk 0:01:02]}
20. e5 {[%clk 0:01:42.7]} 20... Bf5 {[%clk 0:00:46.7]} 21. Rde1 {[%clk
0:01:26.4]} 21... Qd7 {[%clk 0:00:35.3]} 22. exd6 {[%clk 0:01:23.3]} 22... cxd6
{[%clk 0:00:35.4]} 23. Nb5 {[%clk 0:01:19.9]} 23... O-O-O {[%clk 0:00:32.4]} 24.
Bxf5 {[%clk 0:01:15.2]} 24... gxf5 {[%clk 0:00:31.5]} 25. Qe3 {[%clk 0:01:15]}
25... Ng6 {[%clk 0:00:20.5]} 26. Qxb6 {[%clk 0:01:06.9]} 26... Qb7 {[%clk
0:00:17.1]} 27. Na7+ {[%clk 0:01:01]} 1-0